Workbook

Sheet Div legend
A1: Divisions
A3: Abbrev | B3: Description
A4: M-Nov | B4: Men's Novice
A5: M-T2ST | B5: T(16-17) Single Tested
A6: M-T3RT | B6: T(18-19) Raw Tested
A7: M-M3R | B7: M(50-54) Raw
A8: M-M3RT | B8: M(50-54) Raw Tested
A9: M-M4RT | B9: M(55-59) Raw Tested
A10: M-M3R | B10: M(40-44) Raw
A11: M-M2RT | B11: M(45-49) Raw Tested
A12: M-M1RT | B12: M(40-44) Raw Tested
A13: M-OR | B13: Men's Open Raw
A14: M-ORT | B14: Men's Open Raw Tested
A15: M-OS | B15: Open Single Ply
A16: M-OST | B16: Open Single Ply Tested
A17: M-SM S | B17: SubM Single Ply
A18: M-SMST | B18: SubM Single Ply Tested
A19: M-M4M | B19: M(55-59) Multi Ply
A20: M-OM | B20: Open Multi Ply
A21: F-Nov | B21: Women's Novice
A22: F-OR | B22: Women's Open Raw
A23: F-ORT | B23: W Open Raw Tested
A24: F-JRT | B24: WJunior Raw Tested
A25: F-M1RT | B25: W M(40-44) Raw Tested
A26: M-JRT | B26: Men's Junior Raw Tested
A27: M-M4MT | B27: Men's M(55-59)Multi Tested
A28: M-M1R | B28: M(45-49) Raw
A29: M-M2R | B29: M (55-59) Raw
A30: F-M1R | B30: W M(40-44) Raw
A31: M-T3R | B31: T(18-19) Raw
A32: F-M2RT | B32: W Sub M (33-39) Raw
A33: M-SM2T | B33: M Sub M (33-39) RawTested
A34: M-SM2R | B34: M Sub M (33-39) Raw
A35: M-T4RT | B35: T(13-15) Raw Tested
A36: M-R | B36: Mens (20-24) Raw

Sheet Saturday
H1: =IF(ISBLANK(A1),"",G1*2.2046) ->  | J1: =IF(ISBLANK(A1),"",I1*2.2046) ->  | L1: =IF(ISBLANK(A1),"",K1*2.2046) ->  | M1: =IF(ISBLANK(A1),"",G1+I1+K1) ->  | N1: =IF(ISBLANK(A1),"",M1*2.2046) ->  | O1: =IF(ISNUMBER(C1),IF(LEFT(F1,1)="M",VLOOKUP(C1,mwf!A:B,2),VLOOKUP(C1,wwf!A:B,2)),"") ->  | P1: =IF(ISNUMBER(B1),VLOOKUP(B1,af,2),"") ->  | Q1: =IF(ISBLANK(A1),"",M1*P1*O1) -> 
A2: SATURDAY | C2: BWT | D2: BWT | E2: weight | F2: DIV | G2: Squat | H2: Squat | I2: Bench | J2: Bench | K2: Dead | L2: Dead | M2: Total | N2: Total | O2: WgtFctr | P2: Age Fctr | Q2: Coef.
A3: Lifter's Name | B3: Age | C3: (kgs.) | D3: (lbs.) | E3: class | G3: (kgs.) | H3: (lbs.) | I3: (kgs.) | J3: (lbs.) | K3: (kgs.) | L3: (lbs.) | M3: (kgs.) | N3: (lbs.) | O3: =IF(ISNUMBER(C3),IF(LEFT(F3,1)="M",VLOOKUP(C3,mwf,2),VLOOKUP(C3,wwf,2)),"") ->  | P3: =IF(ISNUMBER(B3),VLOOKUP(B3,af,2),"") -> 
D4: =IF(ISBLANK(A4),"",C4*2.2046) ->  | H4: =IF(ISBLANK(A4),"",G4*2.2046) ->  | J4: =IF(ISBLANK(A4),"",I4*2.2046) ->  | L4: =IF(ISBLANK(A4),"",K4*2.2046) ->  | M4: =IF(ISBLANK(A4),"",G4+I4+K4) ->  | N4: =IF(ISBLANK(A4),"",M4*2.2046) ->  | O4: =IF(ISNUMBER(C4),IF(LEFT(F4,1)="M",VLOOKUP(C4,mwf!A:B,2),VLOOKUP(C4,wwf!A:B,2)),"") ->  | P4: =IF(ISNUMBER(B4),VLOOKUP(B4,af,2),"") ->  | Q4: =IF(ISBLANK(A4),"",M4*P4*O4) -> 
A5: Cosette Neely | B5: 37 | C5: 43.8 | D5: =IF(ISBLANK(A5),"",C5*2.2046) -> 96.56148 | E5: 97 | F5: F-SPO | H5: 0 | I5: 92.5 | J5: 203.9255 | L5: 0 | M5: 92.5 | N5: 203.9255 | O5: =IF(ISNUMBER(C5),IF(LEFT(F5,1)="M",VLOOKUP(C5,mwf!A:B,2),VLOOKUP(C5,wwf!A:B,2)),"") -> 1.2621 | P5: =IF(ISNUMBER(B5),VLOOKUP(B5,af,2),"") -> 1 | Q5: 116.74425
A6: Kristin Floreno (Open) | B6: 33 | C6: 46.8 | D6: 103.17528 | E6: 105 | F6: F-MPO | G6: 85 | H6: 187.391 | I6: 52.5 | J6: 115.7415 | K6: 90 | L6: 198.414 | M6: 227.5 | N6: 501.5465 | O6: =IF(ISNUMBER(C6),IF(LEFT(F6,1)="M",VLOOKUP(C6,mwf!A:B,2),VLOOKUP(C6,wwf!A:B,2)),"") -> 1.2019 | P6: 1 | Q6: 273.43225
A7: Kristin Floreno (Sub) | B7: 33 | C7: 46.8 | D7: 103.17528 | E7: 105 | F7: F-MPSM | G7: 85 | H7: 187.391 | I7: 52.5 | J7: 115.7415 | K7: 90 | L7: 198.414 | M7: 227.5 | N7: 501.5465 | O7: =IF(ISNUMBER(C7),IF(LEFT(F7,1)="M",VLOOKUP(C7,mwf!A:B,2),VLOOKUP(C7,wwf!A:B,2)),"") -> 1.2019 | P7: 1 | Q7: 273.43225
A8: Kerri (Kady) Hurlock | B8: 17 | C8: 50.4 | D8: 111.11184 | E8: 114 | F8: F-SPT2 | G8: 57.5 | H8: 126.7645 | I8: 32.5 | J8: 71.6495 | K8: 70 | L8: 154.322 | M8: 160 | N8: 352.736 | O8: =IF(ISNUMBER(C8),IF(LEFT(F8,1)="M",VLOOKUP(C8,mwf!A:B,2),VLOOKUP(C8,wwf!A:B,2)),"") -> 1.1352 | P8: 1.08 | Q8: 196.16256
A9: Caitlin NathalieSullivan | B9: 24 | C9: 74.4 | D9: 164.02224 | E9: 165 | F9: F-MPO | G9: 227.5 | H9: 501.5465 | I9: 105 | J9: 231.483 | K9: 182.5 | L9: 402.3395 | M9: 515 | N9: 1135.369 | O9: =IF(ISNUMBER(C9),IF(LEFT(F9,1)="M",VLOOKUP(C9,mwf!A:B,2),VLOOKUP(C9,wwf!A:B,2)),"") -> 0.84065 | P9: 1 | Q9: 432.93475
A10: Joan Hurlock | B10: 49 | C10: 69.2 | D10: 152.55832 | E10: 165 | F10: F-SPM2, BP | G10: 85 | H10: 187.391 | I10: 57.5 | J10: 126.7645 | K10: 105 | L10: 231.483 | M10: 247.5 | N10: 545.6385 | O10: =IF(ISNUMBER(C10),IF(LEFT(F10,1)="M",VLOOKUP(C10,mwf!A:B,2),VLOOKUP(C10,wwf!A:B,2)),"") -> 0.8835 | P10: 1.113 | Q10: 243.3755362
A11: Joan Hurlock | B11: 49 | C11: 69.2 | D11: 152.55832 | E11: 165 | F11: F-SPM2, DL | G11: 85 | H11: 187.391 | I11: 57.5 | J11: 126.7645 | K11: 105 | L11: 231.483 | M11: 247.5 | N11: 545.6385 | O11: =IF(ISNUMBER(C11),IF(LEFT(F11,1)="M",VLOOKUP(C11,mwf!A:B,2),VLOOKUP(C11,wwf!A:B,2)),"") -> 0.8835 | P11: 1.113 | Q11: 243.3755362
A12: Joan Hurlock | B12: 49 | C12: 69.2 | D12: 152.55832 | E12: 165 | F12: F-SPM2, PL | G12: 85 | H12: 187.391 | I12: 57.5 | J12: 126.7645 | K12: 105 | L12: 231.483 | M12: 247.5 | N12: 545.6385 | O12: =IF(ISNUMBER(C12),IF(LEFT(F12,1)="M",VLOOKUP(C12,mwf!A:B,2),VLOOKUP(C12,wwf!A:B,2)),"") -> 0.8835 | P12: 1.113 | Q12: 243.3755362
A13: Krista Ford | B13: 48 | C13: 82.5 | D13: 181.8795 | E13: 181 | F13: F-MPM2 | G13: 237.5 | H13: 523.5925 | I13: 110 | J13: 242.506 | K13: 192.5 | L13: 424.3855 | M13: 540 | N13: 1190.484 | O13: =IF(ISNUMBER(C13),IF(LEFT(F13,1)="M",VLOOKUP(C13,mwf!A:B,2),VLOOKUP(C13,wwf!A:B,2)),"") -> 0.78655 | P13: 1.097 | Q13: 465.936489
A14: Abigail Mass | B14: 17 | C14: 88 | D14: 194.0048 | E14: 198 | F14: F-MPT2 | G14: 182.5 | H14: 402.3395 | I14: 87.5 | J14: 192.9025 | K14: 132.5 | L14: 292.1095 | M14: 402.5 | N14: 887.3515 | O14: =IF(ISNUMBER(C14),IF(LEFT(F14,1)="M",VLOOKUP(C14,mwf!A:B,2),VLOOKUP(C14,wwf!A:B,2)),"") -> 0.75695 | P14: 1.08 | Q14: 329.046165
A15: Linda Koos | B15: 60 | C15: 96.8 | D15: 213.40528 | E15: 220 | F15: F-MPM5 | H15: 0 | I15: 47.5 | J15: 104.7185 | L15: 0 | M15: 47.5 | N15: 104.7185 | O15: =IF(ISNUMBER(C15),IF(LEFT(F15,1)="M",VLOOKUP(C15,mwf!A:B,2),VLOOKUP(C15,wwf!A:B,2)),"") -> 0.72485 | P15: 1.34 | Q15: 46.1367025
D16: =IF(ISBLANK(A16),"",C16*2.2046) ->  | H16: =IF(ISBLANK(A16),"",G16*2.2046) ->  | J16: =IF(ISBLANK(A16),"",I16*2.2046) ->  | L16: =IF(ISBLANK(A16),"",K16*2.2046) ->  | M16: =IF(ISBLANK(A16),"",G16+I16+K16) ->  | N16: =IF(ISBLANK(A16),"",M16*2.2046) ->  | O16: =IF(ISNUMBER(C16),IF(LEFT(F16,1)="M",VLOOKUP(C16,mwf!A:B,2),VLOOKUP(C16,wwf!A:B,2)),"") ->  | P16: =IF(ISNUMBER(B16),VLOOKUP(B16,af,2),"") ->  | Q16: =IF(ISBLANK(A16),"",M16*P16*O16) -> 
A17: Jason Gonzales | B17: 22 | C17: 65.2 | D17: 143.73992 | E17: 148 | F17: M-SPJR | G17: 182.5 | H17: =IF(ISBLANK(A17),"",G17*2.2046) -> 402.3395 | I17: 137.5 | J17: =IF(ISBLANK(A17),"",I17*2.2046) -> 303.1325 | K17: 182.5 | L17: =IF(ISBLANK(A17),"",K17*2.2046) -> 402.3395 | M17: =IF(ISBLANK(A17),"",G17+I17+K17) -> 502.5 | N17: =IF(ISBLANK(A17),"",M17*2.2046) -> 1107.8115 | O17: =IF(ISNUMBER(C17),IF(LEFT(F17,1)="M",VLOOKUP(C17,mwf!A:B,2),VLOOKUP(C17,wwf!A:B,2)),"") -> 0.7712 | P17: 1.01 | Q17: =IF(ISBLANK(A17),"",M17*P17*O17) -> 391.40328
A18: Ed Castaneda | B18: 23 | C18: 81.4 | D18: 179.45444 | E18: 181 | F18: M-SPJR | G18: 222.5 | H18: =IF(ISBLANK(A18),"",G18*2.2046) -> 490.5235 | I18: 137.5 | J18: =IF(ISBLANK(A18),"",I18*2.2046) -> 303.1325 | K18: 205 | L18: =IF(ISBLANK(A18),"",K18*2.2046) -> 451.943 | M18: =IF(ISBLANK(A18),"",G18+I18+K18) -> 565 | N18: =IF(ISBLANK(A18),"",M18*2.2046) -> 1245.599 | O18: =IF(ISNUMBER(C18),IF(LEFT(F18,1)="M",VLOOKUP(C18,mwf!A:B,2),VLOOKUP(C18,wwf!A:B,2)),"") -> 0.65025 | P18: 1 | Q18: =IF(ISBLANK(A18),"",M18*P18*O18) -> 367.39125
A19: Zach Hallford | B19: 18 | C19: 94.4 | D19: 208.11424 | E19: 220 | F19: M-SPT3 | G19: 277.5 | H19: =IF(ISBLANK(A19),"",G19*2.2046) -> 611.7765 | I19: 190 | J19: =IF(ISBLANK(A19),"",I19*2.2046) -> 418.874 | K19: 232.5 | L19: =IF(ISBLANK(A19),"",K19*2.2046) -> 512.5695 | M19: =IF(ISBLANK(A19),"",G19+I19+K19) -> 700 | N19: =IF(ISBLANK(A19),"",M19*2.2046) -> 1543.22 | O19: =IF(ISNUMBER(C19),IF(LEFT(F19,1)="M",VLOOKUP(C19,mwf!A:B,2),VLOOKUP(C19,wwf!A:B,2)),"") -> 0.59675 | P19: 1.06 | Q19: =IF(ISBLANK(A19),"",M19*P19*O19) -> 442.7885
A20: Zach Henson | B20: 22 | C20: 96.8 | D20: 213.40528 | E20: 220 | F20: M-MPJR | G20: 372.5 | H20: =IF(ISBLANK(A20),"",G20*2.2046) -> 821.2135 | I20: 227.5 | J20: =IF(ISBLANK(A20),"",I20*2.2046) -> 501.5465 | K20: 302.5 | L20: =IF(ISBLANK(A20),"",K20*2.2046) -> 666.8915 | M20: =IF(ISBLANK(A20),"",G20+I20+K20) -> 902.5 | N20: =IF(ISBLANK(A20),"",M20*2.2046) -> 1989.6515 | O20: =IF(ISNUMBER(C20),IF(LEFT(F20,1)="M",VLOOKUP(C20,mwf!A:B,2),VLOOKUP(C20,wwf!A:B,2)),"") -> 0.58965 | P20: 1.01 | Q20: =IF(ISBLANK(A20),"",M20*P20*O20) -> 537.4807163
A21: Brett Cutler | B21: 23 | C21: 97.6 | D21: 215.16896 | E21: 220 | F21: M-SPJR | H21: =IF(ISBLANK(A21),"",G21*2.2046) -> 0 | J21: =IF(ISBLANK(A21),"",I21*2.2046) -> 0 | K21: 255 | L21: =IF(ISBLANK(A21),"",K21*2.2046) -> 562.173 | M21: =IF(ISBLANK(A21),"",G21+I21+K21) -> 255 | N21: =IF(ISBLANK(A21),"",M21*2.2046) -> 562.173 | O21: =IF(ISNUMBER(C21),IF(LEFT(F21,1)="M",VLOOKUP(C21,mwf!A:B,2),VLOOKUP(C21,wwf!A:B,2)),"") -> 0.58745 | P21: 1 | Q21: =IF(ISBLANK(A21),"",M21*P21*O21) -> 149.79975

Sheet Sunday 3-Lift
A1: 2015-06-28 | B1: APF Equipped Nationals - Sunday Full Power - Kg Results
A2: Name | B2: Age | C2: Div | D2: BWt (Kg) | E2: WtCls (Kg) | F2: Glossbrenner | G2: Squat 1 | H2: Squat 2 | I2: Squat 3 | J2: Best Squat | K2: Bench 1 | L2: Bench 2 | M2: Bench 3 | N2: Best Bench | O2: Sub Total | P2: Deadlift 1 | Q2: Deadlift 2 | R2: Deadlift 3 | S2: Best Deadlift | T2: PL Total | U2: Coeff Score | V2: Age & Coeff | W2: Pl-Div-WtCl | X2: Team
A3: Alan Borden (M3) | B3: 51 | C3: M-SPM3 | D3: 130 | E3: 140 | F3: 0.5403 | G3: 265 | H3: 287.5 | I3: -310 | J3: 287.5 | K3: 172.5 | L3: 182.5 | M3: -192.5 | N3: 182.5 | O3: 470 | P3: -230 | Q3: 230 | R3: -245 | S3: 230 | T3: 700 | U3: 378.21 | V3: 433.80687 | W3: 1-M-SPM3-140 | X3: TGS Gym
A4: Andrew Buschbom | B4: 32 | C4: M-MPO | D4: 117 | E4: 125 | F4: 0.55405 | G4: 337.5 | H4: 352.5 | I4: 365 | J4: 365 | K4: 200 | L4: 210 | M4: 220 | N4: 220 | O4: 585 | P4: 325 | Q4: -345 | S4: 325 | T4: 910 | U4: 504.1855 | V4: 504.1855 | W4: 3-M-MPO-125 | X4: Diablo Barbell
A5: Chris A Garcia | B5: 58 | C5: M-SPM4 | D5: 99.2 | E5: 100 | F5: 0.5833 | G5: 282.5 | H5: 297.5 | I5: -320 | J5: 297.5 | K5: 45 | N5: 45 | O5: 342.5 | P5: 142.5 | S5: 142.5 | T5: 485 | U5: 282.9005 | V5: 365.2245455 | W5: 1-M-SPM4-100
A6: Craig Allen Clites | B6: 27 | C6: M-MPO | D6: 123.8 | E6: 125 | F6: 0.54685 | G6: 372.5 | H6: 392.5 | I6: -410 | J6: 392.5 | K6: 227.5 | L6: 257.5 | M6: -265 | N6: 257.5 | O6: 650 | P6: 282.5 | Q6: 305 | R6: -320 | S6: 305 | T6: 955 | U6: 522.24175 | V6: 522.24175 | W6: 2-M-MPO-125 | X6: Trap Haus Barbell Club
A7: Dana Walker | B7: 38 | C7: M-MPO | D7: 80.2 | E7: 82.5 | F7: 0.6567 | G7: 320 | H7: -335 | I7: -335 | J7: 320 | K7: 240 | L7: 255 | M7: -272.5 | N7: 255 | O7: 575 | P7: -252.5 | Q7: 252.5 | R7: -275 | S7: 252.5 | T7: 827.5 | U7: 543.41925 | V7: 543.41925 | W7: 2-M-MPO-82.5 | X7: Brutal Powerlifting
A8: Dave Hoff | B8: 27 | C8: M-MPO | D8: 125.4 | E8: 140 | F8: 0.545 | G8: 480 | H8: 510 | I8: -537.5 | J8: 510 | K8: -437.5 | N8: 0 | O8: 0 | S8: 0 | T8: 0 | U8: 0 | V8: 0 | W8: 0
A9: David Woolley | B9: 34 | C9: M-MPSM | D9: 118 | E9: 125 | F9: 0.553 | G9: -237.5 | H9: 245 | I9: 270 | J9: 270 | K9: 182.5 | L9: 190 | M9: 200 | N9: 200 | O9: 470 | P9: 237.5 | Q9: 250 | R9: 272.5 | S9: 272.5 | T9: 742.5 | U9: 410.6025 | V9: 410.6025 | W9: 1-M-MPSM-125
A10: Dayan Neely | B10: 37 | C10: M-MPO | D10: 107.8 | E10: 110 | F10: 0.5658 | G10: 350 | H10: 367.5 | I10: -377.5 | J10: 367.5 | K10: 240 | N10: 240 | O10: 607.5 | P10: 285 | Q10: 300 | R10: 310 | S10: 310 | T10: 917.5 | U10: 519.1215 | V10: 519.1215 | W10: 1-M-MPO-110 | X10: Diablo Barbell
A11: Dustin Slepicka | B11: 28 | C11: M-MPO | D11: 181 | E11: SHW | F11: 0.50167 | G11: -485 | H11: -517.5 | I11: -517.5 | J11: 0 | K11: -257.5 | N11: 0 | O11: 0 | P11: 345 | Q11: -377.5 | S11: 345 | T11: 0 | U11: 0 | V11: 0 | W11: 0 | X11: Big Iron Compound
A12: Dustin Timothy Johnson | B12: 27 | C12: M-MPO | D12: 99 | E12: 100 | F12: 0.5838 | G12: 332.5 | H12: -352.5 | I12: 352.5 | J12: 352.5 | K12: 217.5 | L12: -227.5 | M12: 227.5 | N12: 227.5 | O12: 580 | P12: -275 | Q12: -275 | R12: 275 | S12: 275 | T12: 855 | U12: 499.149 | V12: 499.149 | W12: 1-M-MPO-100 | X12: Diablo Barbell
A13: Fred Choate | B13: 45 | C13: M-MPM2 | D13: 88 | E13: 90 | F13: 0.6197 | G13: -172.5 | H13: -192.5 | I13: 192.5 | J13: 192.5 | K13: -125 | L13: -125 | M13: 125 | N13: 125 | O13: 317.5 | P13: 172.5 | Q13: 182.5 | R13: 192.5 | S13: 192.5 | T13: 510 | U13: 316.047 | V13: 333.429585 | W13: 1-M-MPM2-90 | X13: Team Fua Ortiz Powerlifting
A14: Gary Reichert | B14: 55 | C14: M-MPM4 | D14: 70.4 | E14: 75 | F14: 0.7229 | G14: -205 | H14: 205 | I14: -227.5 | J14: 205 | K14: 100 | L14: 142.5 | M14: 147.5 | N14: 147.5 | O14: 352.5 | P14: 200 | Q14: 237.5 | R14: -250 | S14: 237.5 | T14: 590 | U14: 426.511 | V14: 522.475975 | W14: 1-M-MPM4-75
A15: James Grandick (M2) | B15: 46 | C15: M-MPM2 | D15: 122.6 | E15: 125 | F15: 0.5482 | G15: 432.5 | H15: 445 | I15: -455 | J15: 445 | K15: 330 | L15: -345 | M15: 345 | N15: 345 | O15: 790 | P15: 305 | Q15: -327.5 | R15: 327.5 | S15: 327.5 | T15: 1117.5 | U15: 612.6135 | V15: 654.271218 | W15: 1-M-MPM2-125 | X15: Big Iron Compound
A16: James Grandick (Open) | B16: 46 | C16: M-MPO | D16: 122.6 | E16: 125 | F16: 0.5482 | G16: 432.5 | H16: 445 | I16: -455 | J16: 445 | K16: 330 | L16: -345 | M16: 345 | N16: 345 | O16: 790 | P16: 305 | Q16: -327.5 | R16: 327.5 | S16: 327.5 | T16: 1117.5 | U16: 612.6135 | V16: 654.271218 | W16: 1-M-MPO-125 | X16: Big Iron Compound
A17: Joe Mass | B17: 45 | C17: M-MPM2 | D17: 124.2 | E17: 125 | F17: 0.54635 | G17: -310 | H17: -310 | I17: 310 | J17: 310 | K17: 195 | L17: -205 | M17: 205 | N17: 205 | O17: 515 | P17: 227.5 | Q17: 242.5 | R17: 250 | S17: 250 | T17: 765 | U17: 417.95775 | V17: 440.9454262 | W17: 2-M-MPM2-125 | X17: Big Iron Compound
A18: Matt Olsen | B18: 25 | C18: M-SPO | D18: 158 | E18: SHW | F18: 0.5172 | G18: 365 | H18: 385 | I18: -400 | J18: 385 | K18: -245 | L18: -245 | M18: 245 | N18: 245 | O18: 630 | P18: -292.5 | Q18: 292.5 | R18: -310 | S18: 292.5 | T18: 922.5 | U18: 477.117 | V18: 477.117 | W18: 1-M-SPO-SHW | X18: Absolute Power
A19: Mike Strom | B19: 35 | C19: M-MPO | D19: 81.6 | E19: 82.5 | F19: 0.64925 | G19: 345 | H19: 365 | I19: -372.5 | J19: 365 | K19: 275 | L19: -292.5 | M19: -292.5 | N19: 275 | O19: 640 | P19: 227.5 | Q19: 250 | R19: -267.5 | S19: 250 | T19: 890 | U19: 577.8325 | V19: 577.8325 | W19: 1-M-MPO-82.5 | X19: Monster Garage Gym
A20: Mitchell Deskis | B20: 24 | C20: M-SPO | D20: 81.6 | E20: 82.5 | F20: 0.64925 | G20: 245 | H20: 260 | I20: 277.5 | J20: 277.5 | K20: 147.5 | L20: 157.5 | M20: -165 | N20: 157.5 | O20: 435 | P20: 275 | Q20: 285 | R20: -295 | S20: 285 | T20: 720 | U20: 467.46 | V20: 467.46 | W20: 1-M-SPO-82.5
A21: Ryan Marble | B21: 28 | C21: M-SPO | D21: 89 | E21: 90 | F21: 0.6157 | G21: 252.5 | H21: -265 | I21: 265 | J21: 265 | K21: 220 | L21: 235 | M21: 245 | N21: 245 | O21: 510 | P21: -237.5 | Q21: -237.5 | R21: 237.5 | S21: 237.5 | T21: 747.5 | U21: 460.23575 | V21: 460.23575 | W21: 1-M-SPO-90 | X21: Brutal Powerlifting
A22: Scott Kuderick | B22: 41 | C22: M-MPO | D22: 90 | E22: 90 | F22: 0.61185 | G22: -305 | H22: 305 | J22: 305 | K22: 160 | N22: 160 | O22: 465 | P22: 222.5 | Q22: 245 | R22: -272.5 | S22: 245 | T22: 710 | U22: 434.4135 | V22: 438.757635 | W22: 1-M-MPO-90 | X22: Liberation Garage Barbell
A23: Steve Brock (M1) | B23: 44 | C23: M-MPM1 | D23: 138 | E23: 140 | F23: 0.5328 | G23: -422.5 | H23: -422.5 | I23: -422.5 | J23: 0 | K23: -295 | N23: 0 | O23: 0 | S23: 0 | T23: 0 | U23: 0 | V23: 0 | W23: 0 | X23: Monster Garage Gym
A24: Steve Brock (Open) | B24: 44 | C24: M-MPO | D24: 138 | E24: 140 | F24: 0.5328 | G24: -422.5 | H24: -422.5 | I24: -422.5 | J24: 0 | K24: -295 | N24: 0 | O24: 0 | S24: 0 | T24: 0 | U24: 0 | V24: 0 | W24: 0 | X24: Monster Garage Gym
B26: APF Equipped Nationals - Sunday Full Power - Lb Results
A27: Name | B27: Age | C27: Div | D27: BWt (Kg) | E27: WtCls (Kg) | F27: Glossbrenner | G27: Squat 1 | H27: Squat 2 | I27: Squat 3 | J27: Best Squat | K27: Bench 1 | L27: Bench 2 | M27: Bench 3 | N27: Best Bench | O27: Sub Total | P27: Deadlift 1 | Q27: Deadlift 2 | R27: Deadlift 3 | S27: Best Deadlift | T27: PL Total | U27: Coeff Score | V27: Age & Coeff | W27: Pl-Div-WtCl | X27: Team
A28: Alan Borden (M3) | B28: 51 | C28: M-SPM3 | D28: 130 | E28: 140 | F28: 0.5403 | G28: 584.219 | H28: 633.8225 | I28: -683.426 | J28: 633.8225 | K28: 380.2935 | L28: 402.3395 | M28: -424.3855 | N28: 402.3395 | O28: 1036.162 | P28: -507.058 | Q28: 507.058 | R28: -540.127 | S28: 507.058 | T28: 1543.22 | U28: 378.21 | V28: 433.80687 | W28: 1-M-SPM3-140 | X28: TGS Gym
A29: Andrew Buschbom | B29: 32 | C29: M-MPO | D29: 117 | E29: 125 | F29: 0.55405 | G29: 744.0525 | H29: 777.1215 | I29: 804.679 | J29: 804.679 | K29: 440.92 | L29: 462.966 | M29: 485.012 | N29: 485.012 | O29: 1289.691 | P29: 716.495 | Q29: -760.587 | R29: 0 | S29: 716.495 | T29: 2006.186 | U29: 504.1855 | V29: 504.1855 | W29: 3-M-MPO-125 | X29: Diablo Barbell
A30: Chris A Garcia | B30: 58 | C30: M-SPM4 | D30: 99.2 | E30: 100 | F30: 0.5833 | G30: 622.7995 | H30: 655.8685 | I30: -705.472 | J30: 655.8685 | K30: 99.207 | L30: 0 | M30: 0 | N30: 99.207 | O30: 755.0755 | P30: 314.1555 | Q30: 0 | R30: 0 | S30: 314.1555 | T30: 1069.231 | U30: 282.9005 | V30: 365.2245455 | W30: 1-M-SPM4-100
A31: Craig Allen Clites | B31: 27 | C31: M-MPO | D31: 123.8 | E31: 125 | F31: 0.54685 | G31: 821.2135 | H31: 865.3055 | I31: -903.886 | J31: 865.3055 | K31: 501.5465 | L31: 567.6845 | M31: -584.219 | N31: 567.6845 | O31: 1432.99 | P31: 622.7995 | Q31: 672.403 | R31: -705.472 | S31: 672.403 | T31: 2105.393 | U31: 522.24175 | V31: 522.24175 | W31: 2-M-MPO-125 | X31: Trap Haus Barbell Club
A32: Dana Walker | B32: 38 | C32: M-MPO | D32: 80.2 | E32: 82.5 | F32: 0.6567 | G32: 705.472 | H32: -738.541 | I32: -738.541 | J32: 705.472 | K32: 529.104 | L32: 562.173 | M32: -600.7535 | N32: 562.173 | O32: 1267.645 | P32: -556.6615 | Q32: 556.6615 | R32: -606.265 | S32: 556.6615 | T32: 1824.3065 | U32: 543.41925 | V32: 543.41925 | W32: 2-M-MPO-82.5 | X32: Brutal Powerlifting
A33: Dave Hoff | B33: 27 | C33: M-MPO | D33: 125.4 | E33: 140 | F33: 0.545 | G33: 1058.208 | H33: 1124.346 | I33: -1184.9725 | J33: 1124.346 | K33: -964.5125 | L33: 0 | M33: 0 | N33: 0 | O33: 0 | P33: 0 | Q33: 0 | R33: 0 | S33: 0 | T33: 0 | U33: 0 | V33: 0 | W33: 0
A34: David Woolley | B34: 34 | C34: M-MPSM | D34: 118 | E34: 125 | F34: 0.553 | G34: -523.5925 | H34: 540.127 | I34: 595.242 | J34: 595.242 | K34: 402.3395 | L34: 418.874 | M34: 440.92 | N34: 440.92 | O34: 1036.162 | P34: 523.5925 | Q34: 551.15 | R34: 600.7535 | S34: 600.7535 | T34: 1636.9155 | U34: 410.6025 | V34: 410.6025 | W34: 1-M-MPSM-125
A35: Dayan Neely | B35: 37 | C35: M-MPO | D35: 107.8 | E35: 110 | F35: 0.5658 | G35: 771.61 | H35: 810.1905 | I35: -832.2365 | J35: 810.1905 | K35: 529.104 | L35: 0 | M35: 0 | N35: 529.104 | O35: 1339.2945 | P35: 628.311 | Q35: 661.38 | R35: 683.426 | S35: 683.426 | T35: 2022.7205 | U35: 519.1215 | V35: 519.1215 | W35: 1-M-MPO-110 | X35: Diablo Barbell
A36: Dustin Slepicka | B36: 28 | C36: M-MPO | D36: 181 | E36: SHW | F36: 0.50167 | G36: -1069.231 | H36: -1140.8805 | I36: -1140.8805 | J36: 0 | K36: -567.6845 | L36: 0 | M36: 0 | N36: 0 | O36: 0 | P36: 760.587 | Q36: -832.2365 | R36: 0 | S36: 760.587 | T36: 0 | U36: 0 | V36: 0 | W36: 0 | X36: Big Iron Compound
A37: Dustin Timothy Johnson | B37: 27 | C37: M-MPO | D37: 99 | E37: 100 | F37: 0.5838 | G37: 733.0295 | H37: -777.1215 | I37: 777.1215 | J37: 777.1215 | K37: 479.5005 | L37: -501.5465 | M37: 501.5465 | N37: 501.5465 | O37: 1278.668 | P37: -606.265 | Q37: -606.265 | R37: 606.265 | S37: 606.265 | T37: 1884.933 | U37: 499.149 | V37: 499.149 | W37: 1-M-MPO-100 | X37: Diablo Barbell
A38: Fred Choate | B38: 45 | C38: M-MPM2 | D38: 88 | E38: 90 | F38: 0.6197 | G38: -380.2935 | H38: -424.3855 | I38: 424.3855 | J38: 424.3855 | K38: -275.575 | L38: -275.575 | M38: 275.575 | N38: 275.575 | O38: 699.9605 | P38: 380.2935 | Q38: 402.3395 | R38: 424.3855 | S38: 424.3855 | T38: 1124.346 | U38: 316.047 | V38: 333.429585 | W38: 1-M-MPM2-90 | X38: Team Fua Ortiz Powerlifting
A39: Gary Reichert | B39: 55 | C39: M-MPM4 | D39: 70.4 | E39: 75 | F39: 0.7229 | G39: -451.943 | H39: 451.943 | I39: -501.5465 | J39: 451.943 | K39: 220.46 | L39: 314.1555 | M39: 325.1785 | N39: 325.1785 | O39: 777.1215 | P39: 440.92 | Q39: 523.5925 | R39: -551.15 | S39: 523.5925 | T39: 1300.714 | U39: 426.511 | V39: 522.475975 | W39: 1-M-MPM4-75
A40: James Grandick (M2) | B40: 46 | C40: M-MPM2 | D40: 122.6 | E40: 125 | F40: 0.5482 | G40: 953.4895 | H40: 981.047 | I40: -1003.093 | J40: 981.047 | K40: 727.518 | L40: -760.587 | M40: 760.587 | N40: 760.587 | O40: 1741.634 | P40: 672.403 | Q40: -722.0065 | R40: 722.0065 | S40: 722.0065 | T40: 2463.6405 | U40: 612.6135 | V40: 654.271218 | W40: 1-M-MPM2-125 | X40: Big Iron Compound
A41: James Grandick (Open) | B41: 46 | C41: M-MPO | D41: 122.6 | E41: 125 | F41: 0.5482 | G41: 953.4895 | H41: 981.047 | I41: -1003.093 | J41: 981.047 | K41: 727.518 | L41: -760.587 | M41: 760.587 | N41: 760.587 | O41: 1741.634 | P41: 672.403 | Q41: -722.0065 | R41: 722.0065 | S41: 722.0065 | T41: 2463.6405 | U41: 612.6135 | V41: 654.271218 | W41: 1-M-MPO-125 | X41: Big Iron Compound
A42: Joe Mass | B42: 45 | C42: M-MPM2 | D42: 124.2 | E42: 125 | F42: 0.54635 | G42: -683.426 | H42: -683.426 | I42: 683.426 | J42: 683.426 | K42: 429.897 | L42: -451.943 | M42: 451.943 | N42: 451.943 | O42: 1135.369 | P42: 501.5465 | Q42: 534.6155 | R42: 551.15 | S42: 551.15 | T42: 1686.519 | U42: 417.95775 | V42: 440.9454262 | W42: 2-M-MPM2-125 | X42: Big Iron Compound
A43: Matt Olsen | B43: 25 | C43: M-SPO | D43: 158 | E43: SHW | F43: 0.5172 | G43: 804.679 | H43: 848.771 | I43: -881.84 | J43: 848.771 | K43: -540.127 | L43: -540.127 | M43: 540.127 | N43: 540.127 | O43: 1388.898 | P43: -644.8455 | Q43: 644.8455 | R43: -683.426 | S43: 644.8455 | T43: 2033.7435 | U43: 477.117 | V43: 477.117 | W43: 1-M-SPO-SHW | X43: Absolute Power
A44: Mike Strom | B44: 35 | C44: M-MPO | D44: 81.6 | E44: 82.5 | F44: 0.64925 | G44: 760.587 | H44: 804.679 | I44: -821.2135 | J44: 804.679 | K44: 606.265 | L44: -644.8455 | M44: -644.8455 | N44: 606.265 | O44: 1410.944 | P44: 501.5465 | Q44: 551.15 | R44: -589.7305 | S44: 551.15 | T44: 1962.094 | U44: 577.8325 | V44: 577.8325 | W44: 1-M-MPO-82.5 | X44: Monster Garage Gym
A45: Mitchell Deskis | B45: 24 | C45: M-SPO | D45: 81.6 | E45: 82.5 | F45: 0.64925 | G45: 540.127 | H45: 573.196 | I45: 611.7765 | J45: 611.7765 | K45: 325.1785 | L45: 347.2245 | M45: -363.759 | N45: 347.2245 | O45: 959.001 | P45: 606.265 | Q45: 628.311 | R45: -650.357 | S45: 628.311 | T45: 1587.312 | U45: 467.46 | V45: 467.46 | W45: 1-M-SPO-82.5
A46: Ryan Marble | B46: 28 | C46: M-SPO | D46: 89 | E46: 90 | F46: 0.6157 | G46: 556.6615 | H46: -584.219 | I46: 584.219 | J46: 584.219 | K46: 485.012 | L46: 518.081 | M46: 540.127 | N46: 540.127 | O46: 1124.346 | P46: -523.5925 | Q46: -523.5925 | R46: 523.5925 | S46: 523.5925 | T46: 1647.9385 | U46: 460.23575 | V46: 460.23575 | W46: 1-M-SPO-90 | X46: Brutal Powerlifting
A47: Scott Kuderick | B47: 41 | C47: M-MPO | D47: 90 | E47: 90 | F47: 0.61185 | G47: -672.403 | H47: 672.403 | I47: 0 | J47: 672.403 | K47: 352.736 | L47: 0 | M47: 0 | N47: 352.736 | O47: 1025.139 | P47: 490.5235 | Q47: 540.127 | R47: -600.7535 | S47: 540.127 | T47: 1565.266 | U47: 434.4135 | V47: 438.757635 | W47: 1-M-MPO-90 | X47: Liberation Garage Barbell
A48: Steve Brock (M1) | B48: 44 | C48: M-MPM1 | D48: 138 | E48: 140 | F48: 0.5328 | G48: -931.4435 | H48: -931.4435 | I48: -931.4435 | J48: 0 | K48: -650.357 | L48: 0 | M48: 0 | N48: 0 | O48: 0 | P48: 0 | Q48: 0 | R48: 0 | S48: 0 | T48: 0 | U48: 0 | V48: 0 | W48: 0 | X48: Monster Garage Gym
A49: Steve Brock (Open) | B49: 44 | C49: M-MPO | D49: 138 | E49: 140 | F49: 0.5328 | G49: -931.4435 | H49: -931.4435 | I49: -931.4435 | J49: 0 | K49: -650.357 | L49: 0 | M49: 0 | N49: 0 | O49: 0 | P49: 0 | Q49: 0 | R49: 0 | S49: 0 | T49: 0 | U49: 0 | V49: 0 | W49: 0 | X49: Monster Garage Gym

Sheet Sunday Deadlift
A1: 2015-06-28 | B1: APF Equipped Nationals - Sunday Deadlift Only - Kg Results
A2: Name | B2: Age | C2: Div | D2: BWt (Kg) | E2: WtCls (Kg) | F2: Glossbrenner | G2: Deadlift 1 | H2: Deadlift 2 | I2: Deadlift 3 | J2: Deadlift 4 | K2: Best Deadlift | L2: Coeff Score | M2: Age & Coeff | N2: Pl-Div-WtCl | O2: Team
A3: Aaron Chavez | B3: 42 | C3: M-SPM1 | D3: 145 | E3: SHW | F3: 0.52695 | G3: 287.5 | H3: 300 | I3: -318 | K3: 300 | L3: 158.085 | M3: 161.2467 | N3: 1-M-SPM1-SHW
A4: Alan Borden (M3) | B4: 51 | C4: M-SPM3 | D4: 130 | E4: 140 | F4: 0.5403 | G4: -230 | H4: 230 | I4: -245 | K4: 230 | L4: 124.269 | M4: 142.536543 | N4: 1-M-SPM3-140 | O4: TGS Gym
A5: Alan Borden (Open) | B5: 51 | C5: M-SPO | D5: 130 | E5: 140 | F5: 0.5403 | G5: -230 | H5: 230 | I5: -245 | K5: 230 | L5: 124.269 | M5: 142.536543 | N5: 1-M-SPO-140 | O5: TGS Gym
A6: Chris McGrail (mp) | B6: 36 | C6: M-MPO | D6: 82.1 | E6: 82.5 | F6: 0.64665 | G6: -300 | H6: 300 | I6: 312.5 | J6: -320 | K6: 312.5 | L6: 202.078125 | M6: 202.078125 | N6: 1-M-MPO-82.5 | O6: Brutal Powerlifting
A7: Chris McGrail (sp) | B7: 36 | C7: M-SPO | D7: 82.1 | E7: 82.5 | F7: 0.64665 | G7: -300 | H7: 300 | I7: 312.5 | J7: -320 | K7: 312.5 | L7: 202.078125 | M7: 202.078125 | N7: 1-M-SPO-82.5 | O7: Brutal Powerlifting
A8: Dana Walker | B8: 38 | C8: M-MPO | D8: 80.2 | E8: 82.5 | F8: 0.6567 | G8: -252.5 | H8: 252.5 | I8: -275 | K8: 252.5 | L8: 165.81675 | M8: 165.81675 | N8: 2-M-MPO-82.5 | O8: Brutal Powerlifting
A9: Dick Zenzen | B9: 63 | C9: M-MPM5 | D9: 113.8 | E9: 125 | F9: 0.5576 | G9: 195 | H9: 210 | K9: 210 | L9: 117.096 | M9: 166.393416 | N9: 1-M-MPM5-125 | O9: Zenzen Barbell
A10: Dustin Slepicka | B10: 28 | C10: M-MPO | D10: 181 | E10: SHW | F10: 0.50167 | G10: 345 | H10: -377.5 | K10: 345 | L10: 173.07615 | M10: 173.07615 | N10: 1-M-MPO-SHW | O10: Big Iron Compound
A11: Greg Ripley | B11: 54 | C11: M-SPM3 | D11: 75 | E11: 75 | F11: 0.68855 | G11: -190 | K11: 0 | L11: 0 | M11: 0 | N11: 0 | O11: Motor City Barbell
A12: Jake Jensen | B12: 25 | C12: M-SPO | D12: 108.4 | E12: 110 | F12: 0.56485 | G12: 295 | H12: -300 | I12: -300 | K12: 295 | L12: 166.63075 | M12: 166.63075 | N12: 1-M-SPO-110
A13: Lance Davis | B13: 48 | C13: M-SPM2 | D13: 109 | E13: 110 | F13: 0.56395 | G13: 227.5 | H13: -250 | I13: -250 | K13: 227.5 | L13: 128.298625 | M13: 140.7435916 | N13: 1-M-SPM2-110 | O13: Brutal Powerlifting
A14: Michael Deskis | B14: 56 | C14: M-SPM4 | D14: 66 | E14: 67.5 | F14: 0.763 | G14: 237.5 | H14: -247.5 | I14: -247.5 | K14: 237.5 | L14: 181.2125 | M14: 225.790775 | N14: 1-M-SPM4-67.5
A15: Shayne Day | B15: 25 | C15: M-SPO | D15: 95.4 | E15: 100 | F15: 0.59375 | G15: 290 | H15: -305 | I15: -305 | K15: 290 | L15: 172.1875 | M15: 172.1875 | N15: 1-M-SPO-100
B17: APF Equipped Nationals - Sunday Deadlift Only - Lb Results
A18: Name | B18: Age | C18: Div | D18: BWt (Kg) | E18: WtCls (Kg) | F18: Glossbrenner | G18: Deadlift 1 | H18: Deadlift 2 | I18: Deadlift 3 | J18: Deadlift 4 | K18: Best Deadlift | L18: Coeff Score | M18: Age & Coeff | N18: Pl-Div-WtCl | O18: Team
A19: Aaron Chavez | B19: 42 | C19: M-SPM1 | D19: 145 | E19: SHW | F19: 0.52695 | G19: 633.8225 | H19: 661.38 | I19: -701.0628 | J19: 0 | K19: 661.38 | L19: 158.085 | M19: 161.2467 | N19: 1-M-SPM1-SHW
A20: Alan Borden (M3) | B20: 51 | C20: M-SPM3 | D20: 130 | E20: 140 | F20: 0.5403 | G20: -507.058 | H20: 507.058 | I20: -540.127 | J20: 0 | K20: 507.058 | L20: 124.269 | M20: 142.536543 | N20: 1-M-SPM3-140 | O20: TGS Gym
A21: Alan Borden (Open) | B21: 51 | C21: M-SPO | D21: 130 | E21: 140 | F21: 0.5403 | G21: -507.058 | H21: 507.058 | I21: -540.127 | J21: 0 | K21: 507.058 | L21: 124.269 | M21: 142.536543 | N21: 1-M-SPO-140 | O21: TGS Gym
A22: Chris McGrail (mp) | B22: 36 | C22: M-MPO | D22: 82.1 | E22: 82.5 | F22: 0.64665 | G22: -661.38 | H22: 661.38 | I22: 688.9375 | J22: -705.472 | K22: 688.9375 | L22: 202.078125 | M22: 202.078125 | N22: 1-M-MPO-82.5 | O22: Brutal Powerlifting
A23: Chris McGrail (sp) | B23: 36 | C23: M-SPO | D23: 82.1 | E23: 82.5 | F23: 0.64665 | G23: -661.38 | H23: 661.38 | I23: 688.9375 | J23: -705.472 | K23: 688.9375 | L23: 202.078125 | M23: 202.078125 | N23: 1-M-SPO-82.5 | O23: Brutal Powerlifting
A24: Dana Walker | B24: 38 | C24: M-MPO | D24: 80.2 | E24: 82.5 | F24: 0.6567 | G24: -556.6615 | H24: 556.6615 | I24: -606.265 | J24: 0 | K24: 556.6615 | L24: 165.81675 | M24: 165.81675 | N24: 2-M-MPO-82.5 | O24: Brutal Powerlifting
A25: Dick Zenzen | B25: 63 | C25: M-MPM5 | D25: 113.8 | E25: 125 | F25: 0.5576 | G25: 429.897 | H25: 462.966 | I25: 0 | J25: 0 | K25: 462.966 | L25: 117.096 | M25: 166.393416 | N25: 1-M-MPM5-125 | O25: Zenzen Barbell
A26: Dustin Slepicka | B26: 28 | C26: M-MPO | D26: 181 | E26: SHW | F26: 0.50167 | G26: 760.587 | H26: -832.2365 | I26: 0 | J26: 0 | K26: 760.587 | L26: 173.07615 | M26: 173.07615 | N26: 1-M-MPO-SHW | O26: Big Iron Compound
A27: Greg Ripley | B27: 54 | C27: M-SPM3 | D27: 75 | E27: 75 | F27: 0.68855 | G27: -418.874 | H27: 0 | I27: 0 | J27: 0 | K27: 0 | L27: 0 | M27: 0 | N27: 0 | O27: Motor City Barbell
A28: Jake Jensen | B28: 25 | C28: M-SPO | D28: 108.4 | E28: 110 | F28: 0.56485 | G28: 650.357 | H28: -661.38 | I28: -661.38 | J28: 0 | K28: 650.357 | L28: 166.63075 | M28: 166.63075 | N28: 1-M-SPO-110
A29: Lance Davis | B29: 48 | C29: M-SPM2 | D29: 109 | E29: 110 | F29: 0.56395 | G29: 501.5465 | H29: -551.15 | I29: -551.15 | J29: 0 | K29: 501.5465 | L29: 128.298625 | M29: 140.7435916 | N29: 1-M-SPM2-110 | O29: Brutal Powerlifting
A30: Michael Deskis | B30: 56 | C30: M-SPM4 | D30: 66 | E30: 67.5 | F30: 0.763 | G30: 523.5925 | H30: -545.6385 | I30: -545.6385 | J30: 0 | K30: 523.5925 | L30: 181.2125 | M30: 225.790775 | N30: 1-M-SPM4-67.5
A31: Shayne Day | B31: 25 | C31: M-SPO | D31: 95.4 | E31: 100 | F31: 0.59375 | G31: 639.334 | H31: -672.403 | I31: -672.403 | J31: 0 | K31: 639.334 | L31: 172.1875 | M31: 172.1875 | N31: 1-M-SPO-100

Sheet Sunday Bench
A1: 2015-06-28 | B1: APF Equipped Nationals - Sunday Bench Only - Kg Results
A2: Name | B2: Age | C2: Div | D2: BWt (Kg) | E2: WtCls (Kg) | F2: Glossbrenner | G2: Bench 1 | H2: Bench 2 | I2: Bench 3 | J2: Bench 4 | K2: Best Bench | L2: Coeff Score | M2: Age & Coeff | N2: Pl-Div-WtCl | O2: Team
A3: Dana Walker | B3: 38 | C3: M-MPO | D3: 80.2 | E3: 82.5 | F3: 0.6567 | G3: 240 | H3: 255 | I3: -272.5 | K3: 255 | L3: 167.4585 | M3: 167.4585 | N3: 1-M-MPO-82.5 | O3: Brutal Powerlifting
A4: Jay Anderson (Open) | B4: 37 | C4: M-SPO | D4: 118.2 | E4: 125 | F4: 0.5528 | G4: 247.5 | H4: 260 | I4: 272.5 | J4: -285.5 | K4: 272.5 | L4: 150.638 | M4: 150.638 | N4: 1-M-SPO-125 | O4: Brutal Powerlifting
A5: Jay Anderson (SM) | B5: 37 | C5: M-SPSM | D5: 118.2 | E5: 125 | F5: 0.5528 | G5: 247.5 | H5: 260 | I5: 272.5 | J5: -285.5 | K5: 272.5 | L5: 150.638 | M5: 150.638 | N5: 1-M-SPSM-125 | O5: Brutal Powerlifting
A6: Larry Mistric | B6: 58 | C6: M-MPM4 | D6: 109.2 | E6: 110 | F6: 0.56365 | G6: 222.5 | H6: 250 | I6: -272.5 | K6: 250 | L6: 140.9125 | M6: 181.9180375 | N6: 1-M-MPM4-110 | O6: McDaniel's
A7: Michael Deskis | B7: 56 | C7: M-SPM4 | D7: 66 | E7: 67.5 | F7: 0.763 | G7: 102.5 | H7: 107.5 | I7: 112.5 | J7: -117.5 | K7: 112.5 | L7: 85.8375 | M7: 106.953525 | N7: 1-M-SPM4-67.5
B9: APF Equipped Nationals - Sunday Bench Only - Lb Results
A10: Name | B10: Age | C10: Div | D10: BWt (Kg) | E10: WtCls (Kg) | F10: Glossbrenner | G10: Bench 1 | H10: Bench 2 | I10: Bench 3 | J10: Bench 4 | K10: Best Bench | L10: Coeff Score | M10: Age & Coeff | N10: Pl-Div-WtCl | O10: Team
A11: Dana Walker | B11: 38 | C11: M-MPO | D11: 80.2 | E11: 82.5 | F11: 0.6567 | G11: 529.104 | H11: 562.173 | I11: -600.7535 | J11: 0 | K11: 562.173 | L11: 167.4585 | M11: 167.4585 | N11: 1-M-MPO-82.5 | O11: Brutal Powerlifting
A12: Jay Anderson (Open) | B12: 37 | C12: M-SPO | D12: 118.2 | E12: 125 | F12: 0.5528 | G12: 545.6385 | H12: 573.196 | I12: 600.7535 | J12: -629.4133 | K12: 600.7535 | L12: 150.638 | M12: 150.638 | N12: 1-M-SPO-125 | O12: Brutal Powerlifting
A13: Jay Anderson (SM) | B13: 37 | C13: M-SPSM | D13: 118.2 | E13: 125 | F13: 0.5528 | G13: 545.6385 | H13: 573.196 | I13: 600.7535 | J13: -629.4133 | K13: 600.7535 | L13: 150.638 | M13: 150.638 | N13: 1-M-SPSM-125 | O13: Brutal Powerlifting
A14: Larry Mistric | B14: 58 | C14: M-MPM4 | D14: 109.2 | E14: 110 | F14: 0.56365 | G14: 490.5235 | H14: 551.15 | I14: -600.7535 | J14: 0 | K14: 551.15 | L14: 140.9125 | M14: 181.9180375 | N14: 1-M-MPM4-110 | O14: McDaniel's
A15: Michael Deskis | B15: 56 | C15: M-SPM4 | D15: 66 | E15: 67.5 | F15: 0.763 | G15: 225.9715 | H15: 236.9945 | I15: 248.0175 | J15: -259.0405 | K15: 248.0175 | L15: 85.8375 | M15: 106.953525 | N15: 1-M-SPM4-67.5

Sheet Age Factors (hidden)
A1: 0 | B1: 1
A2: 14 | B2: 1.23
A3: 15 | B3: 1.18
A4: 16 | B4: 1.13
A5: 17 | B5: 1.08
A6: 18 | B6: 1.06
A7: 20 | B7: 1.03
A8: 21 | B8: 1.02
A9: 22 | B9: 1.01
A10: 23 | B10: 1
A11: 24 | B11: 1
A12: 25 | B12: 1
A13: 26 | B13: 1
A14: 27 | B14: 1
A15: 28 | B15: 1
A16: 29 | B16: 1
A17: 30 | B17: 1
A18: 31 | B18: 1
A19: 32 | B19: 1
A20: 33 | B20: 1
A21: 34 | B21: 1
A22: 35 | B22: 1
A23: 36 | B23: 1
A24: 37 | B24: 1
A25: 38 | B25: 1
A26: 39 | B26: 1
A27: 40 | B27: 1
A28: 41 | B28: 1.01
A29: 42 | B29: 1.02
A30: 43 | B30: 1.031
A31: 44 | B31: 1.043
A32: 45 | B32: 1.055
A33: 46 | B33: 1.068
A34: 47 | B34: 1.082
A35: 48 | B35: 1.097
A36: 49 | B36: 1.113
A37: 50 | B37: 1.13
A38: 51 | B38: 1.147
A39: 52 | B39: 1.165
A40: 53 | B40: 1.184
A41: 54 | B41: 1.204
A42: 55 | B42: 1.225
A43: 56 | B43: 1.246
A44: 57 | B44: 1.268
A45: 58 | B45: 1.291
A46: 59 | B46: 1.315
A47: 60 | B47: 1.34
A48: 61 | B48: 1.366
A49: 62 | B49: 1.393
A50: 63 | B50: 1.421
A51: 64 | B51: 1.45
A52: 65 | B52: 1.48
A53: 66 | B53: 1.511
A54: 67 | B54: 1.543
A55: 68 | B55: 1.576
A56: 69 | B56: 1.61
A57: 70 | B57: 1.645
A58: 71 | B58: 1.681
A59: 72 | B59: 1.718
A60: 73 | B60: 1.756
A61: 74 | B61: 1.795
A62: 75 | B62: 1.835
A63: 76 | B63: 1.876
A64: 77 | B64: 1.918
A65: 78 | B65: 1.961
A66: 79 | B66: 2.005
A67: 80 | B67: 2.05

Sheet mwf (hidden)
A1: 0 | B1: 1.32435
A2: 40 | B2: 1.32435
A3: 40.05 | B3: 1.32225
A4: 40.1 | B4: 1.32015
A5: 40.15 | B5: 1.31807
A6: 40.2 | B6: 1.316
A7: 40.25 | B7: 1.3139
A8: 40.3 | B8: 1.3118
A9: 40.35 | B9: 1.30972
A10: 40.4 | B10: 1.30765
A11: 40.45 | B11: 1.3056
A12: 40.5 | B12: 1.30355
A13: 40.55 | B13: 1.3015
A14: 40.6 | B14: 1.29945
A15: 40.65 | B15: 1.29742
A16: 40.7 | B16: 1.2954
A17: 40.75 | B17: 1.2934
A18: 40.8 | B18: 1.2914
A19: 40.85 | B19: 1.2894
A20: 40.9 | B20: 1.2874
A21: 40.95 | B21: 1.2854
A22: 41 | B22: 1.2834
A23: 41.05 | B23: 1.28142
A24: 41.1 | B24: 1.27945
A25: 41.15 | B25: 1.27747
A26: 41.2 | B26: 1.2755
A27: 41.25 | B27: 1.27355
A28: 41.3 | B28: 1.2716
A29: 41.35 | B29: 1.26967
A30: 41.4 | B30: 1.26775
A31: 41.45 | B31: 1.26582
A32: 41.5 | B32: 1.2639
A33: 41.55 | B33: 1.26197
A34: 41.6 | B34: 1.26005
A35: 41.65 | B35: 1.25815
A36: 41.7 | B36: 1.25625
A37: 41.75 | B37: 1.25435
A38: 41.8 | B38: 1.25245
A39: 41.85 | B39: 1.25057
A40: 41.9 | B40: 1.2487
A41: 41.95 | B41: 1.24685
A42: 42 | B42: 1.245
A43: 42.05 | B43: 1.24312
A44: 42.1 | B44: 1.24125
A45: 42.15 | B45: 1.23942
A46: 42.2 | B46: 1.2376
A47: 42.25 | B47: 1.23575
A48: 42.3 | B48: 1.2339
A49: 42.35 | B49: 1.2321
A50: 42.4 | B50: 1.2303
A51: 42.45 | B51: 1.22847
A52: 42.5 | B52: 1.22665
A53: 42.55 | B53: 1.22487
A54: 42.6 | B54: 1.2231
A55: 42.65 | B55: 1.22132
A56: 42.7 | B56: 1.21955
A57: 42.75 | B57: 1.21777
A58: 42.8 | B58: 1.216
A59: 42.85 | B59: 1.21425
A60: 42.9 | B60: 1.2125
A61: 42.95 | B61: 1.21075
A62: 43 | B62: 1.209
A63: 43.05 | B63: 1.20725
A64: 43.1 | B64: 1.2055
A65: 43.15 | B65: 1.20375
A66: 43.2 | B66: 1.202
A67: 43.25 | B67: 1.2003
A68: 43.3 | B68: 1.1986
A69: 43.35 | B69: 1.19687
A70: 43.4 | B70: 1.19515
A71: 43.45 | B71: 1.19345
A72: 43.5 | B72: 1.19175
A73: 43.55 | B73: 1.1901
A74: 43.6 | B74: 1.18845
A75: 43.65 | B75: 1.18675
A76: 43.7 | B76: 1.18505
A77: 43.75 | B77: 1.18337
A78: 43.8 | B78: 1.1817
A79: 43.85 | B79: 1.18005
A80: 43.9 | B80: 1.1784
A81: 43.95 | B81: 1.17677
A82: 44 | B82: 1.17515
A83: 44.05 | B83: 1.1735
A84: 44.1 | B84: 1.17185
A85: 44.15 | B85: 1.17022
A86: 44.2 | B86: 1.1686
A87: 44.25 | B87: 1.16697
A88: 44.3 | B88: 1.16535
A89: 44.35 | B89: 1.16375
A90: 44.4 | B90: 1.16215
A91: 44.45 | B91: 1.16057
A92: 44.5 | B92: 1.159
A93: 44.55 | B93: 1.1574
A94: 44.6 | B94: 1.1558
A95: 44.65 | B95: 1.15422
A96: 44.7 | B96: 1.15265
A97: 44.75 | B97: 1.15107
A98: 44.8 | B98: 1.1495
A99: 44.85 | B99: 1.14797
A100: 44.9 | B100: 1.14645
A101: 44.95 | B101: 1.14487
A102: 45 | B102: 1.1433
A103: 45.05 | B103: 1.14177
A104: 45.1 | B104: 1.14025
A105: 45.15 | B105: 1.13872
A106: 45.2 | B106: 1.1372
A107: 45.25 | B107: 1.13567
A108: 45.3 | B108: 1.13415
A109: 45.35 | B109: 1.13262
A110: 45.4 | B110: 1.1311
A111: 45.45 | B111: 1.12962
A112: 45.5 | B112: 1.12815
A113: 45.55 | B113: 1.12662
A114: 45.6 | B114: 1.1251
A115: 45.65 | B115: 1.12362
A116: 45.7 | B116: 1.12215
A117: 45.75 | B117: 1.12067
A118: 45.8 | B118: 1.1192
A119: 45.85 | B119: 1.11775
A120: 45.9 | B120: 1.1163
A121: 45.95 | B121: 1.11485
A122: 46 | B122: 1.1134
A123: 46.05 | B123: 1.11195
A124: 46.1 | B124: 1.1105
A125: 46.15 | B125: 1.10907
A126: 46.2 | B126: 1.10765
A127: 46.25 | B127: 1.1062
A128: 46.3 | B128: 1.10475
A129: 46.35 | B129: 1.10332
A130: 46.4 | B130: 1.1019
A131: 46.45 | B131: 1.10047
A132: 46.5 | B132: 1.09905
A133: 46.55 | B133: 1.09767
A134: 46.6 | B134: 1.0963
A135: 46.65 | B135: 1.09487
A136: 46.7 | B136: 1.09345
A137: 46.75 | B137: 1.09207
A138: 46.8 | B138: 1.0907
A139: 46.85 | B139: 1.0893
A140: 46.9 | B140: 1.0879
A141: 46.95 | B141: 1.08655
A142: 47 | B142: 1.0852
A143: 47.05 | B143: 1.08382
A144: 47.1 | B144: 1.08245
A145: 47.15 | B145: 1.0811
A146: 47.2 | B146: 1.07975
A147: 47.25 | B147: 1.0784
A148: 47.3 | B148: 1.07705
A149: 47.35 | B149: 1.0757
A150: 47.4 | B150: 1.07435
A151: 47.45 | B151: 1.07302
A152: 47.5 | B152: 1.0717
A153: 47.55 | B153: 1.0704
A154: 47.6 | B154: 1.0691
A155: 47.65 | B155: 1.06777
A156: 47.7 | B156: 1.06645
A157: 47.75 | B157: 1.06515
A158: 47.8 | B158: 1.06385
A159: 47.85 | B159: 1.06252
A160: 47.9 | B160: 1.0612
A161: 47.95 | B161: 1.0599
A162: 48 | B162: 1.0586
A163: 48.05 | B163: 1.05732
A164: 48.1 | B164: 1.05605
A165: 48.15 | B165: 1.05475
A166: 48.2 | B166: 1.05345
A167: 48.25 | B167: 1.0522
A168: 48.3 | B168: 1.05095
A169: 48.35 | B169: 1.04967
A170: 48.4 | B170: 1.0484
A171: 48.45 | B171: 1.04715
A172: 48.5 | B172: 1.0459
A173: 48.55 | B173: 1.04465
A174: 48.6 | B174: 1.0434
A175: 48.65 | B175: 1.04217
A176: 48.7 | B176: 1.04095
A177: 48.75 | B177: 1.0397
A178: 48.8 | B178: 1.03845
A179: 48.85 | B179: 1.03722
A180: 48.9 | B180: 1.036
A181: 48.95 | B181: 1.03477
A182: 49 | B182: 1.03355
A183: 49.05 | B183: 1.03235
A184: 49.1 | B184: 1.03115
A185: 49.15 | B185: 1.02992
A186: 49.2 | B186: 1.0287
A187: 49.25 | B187: 1.0275
A188: 49.3 | B188: 1.0263
A189: 49.35 | B189: 1.0251
A190: 49.4 | B190: 1.0239
A191: 49.45 | B191: 1.02272
A192: 49.5 | B192: 1.02155
A193: 49.55 | B193: 1.02035
A194: 49.6 | B194: 1.01915
A195: 49.65 | B195: 1.018
A196: 49.7 | B196: 1.01685
A197: 49.75 | B197: 1.01567
A198: 49.8 | B198: 1.0145
A199: 49.85 | B199: 1.01335
A200: 49.9 | B200: 1.0122
... 2831 more rows

Sheet wwf (hidden)
A1: 0 | B1: 1.3437
A2: 40 | B2: 1.3437
A3: 40.05 | B3: 1.3426
A4: 40.1 | B4: 1.3415
A5: 40.15 | B5: 1.3404
A6: 40.2 | B6: 1.3393
A7: 40.25 | B7: 1.3381
A8: 40.3 | B8: 1.337
A9: 40.35 | B9: 1.3359
A10: 40.4 | B10: 1.3348
A11: 40.45 | B11: 1.3337
A12: 40.5 | B12: 1.3326
A13: 40.55 | B13: 1.3315
A14: 40.6 | B14: 1.3305
A15: 40.65 | B15: 1.3294
A16: 40.7 | B16: 1.3283
A17: 40.75 | B17: 1.3272
A18: 40.8 | B18: 1.3261
A19: 40.85 | B19: 1.325
A20: 40.9 | B20: 1.3239
A21: 40.95 | B21: 1.3228
A22: 41 | B22: 1.3217
A23: 41.05 | B23: 1.3206
A24: 41.1 | B24: 1.3195
A25: 41.15 | B25: 1.3184
A26: 41.2 | B26: 1.3174
A27: 41.25 | B27: 1.3163
A28: 41.3 | B28: 1.3152
A29: 41.35 | B29: 1.3141
A30: 41.4 | B30: 1.313
A31: 41.45 | B31: 1.3119
A32: 41.5 | B32: 1.3109
A33: 41.55 | B33: 1.3098
A34: 41.6 | B34: 1.3087
A35: 41.65 | B35: 1.3076
A36: 41.7 | B36: 1.3065
A37: 41.75 | B37: 1.3054
A38: 41.8 | B38: 1.3043
A39: 41.85 | B39: 1.3033
A40: 41.9 | B40: 1.3022
A41: 41.95 | B41: 1.3011
A42: 42 | B42: 1.3001
A43: 42.05 | B43: 1.299
A44: 42.1 | B44: 1.2979
A45: 42.15 | B45: 1.2969
A46: 42.2 | B46: 1.2958
A47: 42.25 | B47: 1.2947
A48: 42.3 | B48: 1.2936
A49: 42.35 | B49: 1.2926
A50: 42.4 | B50: 1.2915
A51: 42.45 | B51: 1.2904
A52: 42.5 | B52: 1.2894
A53: 42.55 | B53: 1.2883
A54: 42.6 | B54: 1.2873
A55: 42.65 | B55: 1.2862
A56: 42.7 | B56: 1.2851
A57: 42.75 | B57: 1.2841
A58: 42.8 | B58: 1.283
A59: 42.85 | B59: 1.282
A60: 42.9 | B60: 1.2809
A61: 42.95 | B61: 1.2799
A62: 43 | B62: 1.2788
A63: 43.05 | B63: 1.2777
A64: 43.1 | B64: 1.2767
A65: 43.15 | B65: 1.2756
A66: 43.2 | B66: 1.2746
A67: 43.25 | B67: 1.2736
A68: 43.3 | B68: 1.2725
A69: 43.35 | B69: 1.2715
A70: 43.4 | B70: 1.2704
A71: 43.45 | B71: 1.2694
A72: 43.5 | B72: 1.2684
A73: 43.55 | B73: 1.2673
A74: 43.6 | B74: 1.2662
A75: 43.65 | B75: 1.2652
A76: 43.7 | B76: 1.2642
A77: 43.75 | B77: 1.2631
A78: 43.8 | B78: 1.2621
A79: 43.85 | B79: 1.261
A80: 43.9 | B80: 1.26
A81: 43.95 | B81: 1.259
A82: 44 | B82: 1.258
A83: 44.05 | B83: 1.2569
A84: 44.1 | B84: 1.2559
A85: 44.15 | B85: 1.2548
A86: 44.2 | B86: 1.2538
A87: 44.25 | B87: 1.2528
A88: 44.3 | B88: 1.2518
A89: 44.35 | B89: 1.2508
A90: 44.4 | B90: 1.2497
A91: 44.45 | B91: 1.2487
A92: 44.5 | B92: 1.2477
A93: 44.55 | B93: 1.2467
A94: 44.6 | B94: 1.2457
A95: 44.65 | B95: 1.2446
A96: 44.7 | B96: 1.2436
A97: 44.75 | B97: 1.2426
A98: 44.8 | B98: 1.2416
A99: 44.85 | B99: 1.2406
A100: 44.9 | B100: 1.2396
A101: 44.95 | B101: 1.2384
A102: 45 | B102: 1.2373
A103: 45.05 | B103: 1.2364
A104: 45.1 | B104: 1.2355
A105: 45.15 | B105: 1.2345
A106: 45.2 | B106: 1.2335
A107: 45.25 | B107: 1.2325
A108: 45.3 | B108: 1.2315
A109: 45.35 | B109: 1.2305
A110: 45.4 | B110: 1.2295
A111: 45.45 | B111: 1.2285
A112: 45.5 | B112: 1.2275
A113: 45.55 | B113: 1.2265
A114: 45.6 | B114: 1.2255
A115: 45.65 | B115: 1.2245
A116: 45.7 | B116: 1.2235
A117: 45.75 | B117: 1.2225
A118: 45.8 | B118: 1.2215
A119: 45.85 | B119: 1.2205
A120: 45.9 | B120: 1.2195
A121: 45.95 | B121: 1.2185
A122: 46 | B122: 1.2175
A123: 46.05 | B123: 1.2165
A124: 46.1 | B124: 1.2156
A125: 46.15 | B125: 1.2146
A126: 46.2 | B126: 1.2136
A127: 46.25 | B127: 1.2126
A128: 46.3 | B128: 1.2116
A129: 46.35 | B129: 1.2106
A130: 46.4 | B130: 1.2097
A131: 46.45 | B131: 1.2087
A132: 46.5 | B132: 1.2077
A133: 46.55 | B133: 1.2067
A134: 46.6 | B134: 1.2058
A135: 46.65 | B135: 1.2048
A136: 46.7 | B136: 1.2038
A137: 46.75 | B137: 1.2028
A138: 46.8 | B138: 1.2019
A139: 46.85 | B139: 1.2009
A140: 46.9 | B140: 1.2
A141: 46.95 | B141: 1.199
A142: 47 | B142: 1.198
A143: 47.05 | B143: 1.197
A144: 47.1 | B144: 1.1961
A145: 47.15 | B145: 1.1951
A146: 47.2 | B146: 1.1942
A147: 47.25 | B147: 1.1932
A148: 47.3 | B148: 1.1922
A149: 47.35 | B149: 1.1913
A150: 47.4 | B150: 1.1904
A151: 47.45 | B151: 1.1894
A152: 47.5 | B152: 1.1884
A153: 47.55 | B153: 1.1875
A154: 47.6 | B154: 1.1865
A155: 47.65 | B155: 1.1856
A156: 47.7 | B156: 1.1846
A157: 47.75 | B157: 1.1837
A158: 47.8 | B158: 1.1827
A159: 47.85 | B159: 1.1818
A160: 47.9 | B160: 1.1809
A161: 47.95 | B161: 1.1799
A162: 48 | B162: 1.179
A163: 48.05 | B163: 1.178
A164: 48.1 | B164: 1.1771
A165: 48.15 | B165: 1.1761
A166: 48.2 | B166: 1.1752
A167: 48.25 | B167: 1.1743
A168: 48.3 | B168: 1.1733
A169: 48.35 | B169: 1.1724
A170: 48.4 | B170: 1.1715
A171: 48.45 | B171: 1.1705
A172: 48.5 | B172: 1.1696
A173: 48.55 | B173: 1.1687
A174: 48.6 | B174: 1.1678
A175: 48.65 | B175: 1.1668
A176: 48.7 | B176: 1.1659
A177: 48.75 | B177: 1.165
A178: 48.8 | B178: 1.1641
A179: 48.85 | B179: 1.1631
A180: 48.9 | B180: 1.1622
A181: 48.95 | B181: 1.1613
A182: 49 | B182: 1.1604
A183: 49.05 | B183: 1.1594
A184: 49.1 | B184: 1.1585
A185: 49.15 | B185: 1.1576
A186: 49.2 | B186: 1.1568
A187: 49.25 | B187: 1.1558
A188: 49.3 | B188: 1.1549
A189: 49.35 | B189: 1.154
A190: 49.4 | B190: 1.1531
A191: 49.45 | B191: 1.1522
A192: 49.5 | B192: 1.1513
A193: 49.55 | B193: 1.1504
A194: 49.6 | B194: 1.1495
A195: 49.65 | B195: 1.1486
A196: 49.7 | B196: 1.1477
A197: 49.75 | B197: 1.1468
A198: 49.8 | B198: 1.1459
A199: 49.85 | B199: 1.145
A200: 49.9 | B200: 1.1441
... 2011 more rows

Sheet Classes (hidden)
A1: Class | B1: AF | C1: WF | D1: BL | E1: Kmax | F1: Stat
A2: Men AAPF Guest | B2: 0 | C2: 1 | D2: 0 | E2: 227.5 | F2: A
A5: Men AAPF Novice | B5: 0 | C5: 1 | D5: 0 | E5: 227.5 | F5: A
A6: Men AAPF Teen | B6: 1 | C6: 1 | D6: 1 | E6: 227.5 | F6: A
A7: Men AAPF Teen 13-15 | B7: 1 | C7: 1 | D7: 1 | E7: 227.5 | F7: A
A8: Men AAPF Teen 13-15 114 1/2 | B8: 1 | C8: 1 | D8: 1 | E8: 52 | F8: A
A9: Men AAPF Teen 13-15 123 1/2 | B9: 1 | C9: 1 | D9: 1 | E9: 56 | F9: A
A10: Men AAPF Teen 13-15 132 1/4 | B10: 1 | C10: 1 | D10: 1 | E10: 60 | F10: A
A11: Men AAPF Teen 13-15 148 3/4 | B11: 1 | C11: 1 | D11: 1 | E11: 67.5 | F11: A
A12: Men AAPF Teen 13-15 165 1/4 | B12: 1 | C12: 1 | D12: 1 | E12: 75 | F12: A
A13: Men AAPF Teen 13-15 181 3/4 | B13: 1 | C13: 1 | D13: 1 | E13: 82.5 | F13: A
A14: Men AAPF Teen 13-15 198 1/4 | B14: 1 | C14: 1 | D14: 1 | E14: 90 | F14: A
A15: Men AAPF Teen 13-15 220 1/4 | B15: 1 | C15: 1 | D15: 1 | E15: 100 | F15: A
A16: Men AAPF Teen 13-15 242 1/2 | B16: 1 | C16: 1 | D16: 1 | E16: 110 | F16: A
A17: Men AAPF Teen 13-15 275 1/4 | B17: 1 | C17: 1 | D17: 1 | E17: 125 | F17: A
A18: Men AAPF Teen 13-15 308 | B18: 1 | C18: 1 | D18: 1 | E18: 140 | F18: A
A19: Men AAPF Teen 13-15 SHW | B19: 1 | C19: 1 | D19: 1 | E19: 227.5 | F19: A
A20: Men AAPF Teen 16-17 | B20: 1 | C20: 1 | D20: 1 | E20: 227.5 | F20: A
A21: Men AAPF Teen 16-17 114 1/2 | B21: 1 | C21: 1 | D21: 1 | E21: 52 | F21: A
A22: Men AAPF Teen 16-17 123 1/2 | B22: 1 | C22: 1 | D22: 1 | E22: 56 | F22: A
A23: Men AAPF Teen 16-17 132 1/4 | B23: 1 | C23: 1 | D23: 1 | E23: 60 | F23: A
A24: Men AAPF Teen 16-17 148 3/4 | B24: 1 | C24: 1 | D24: 1 | E24: 67.5 | F24: A
A25: Men AAPF Teen 16-17 165 1/4 | B25: 1 | C25: 1 | D25: 1 | E25: 75 | F25: A
A26: Men AAPF Teen 16-17 181 3/4 | B26: 1 | C26: 1 | D26: 1 | E26: 82.5 | F26: A
A27: Men AAPF Teen 16-17 198 1/4 | B27: 1 | C27: 1 | D27: 1 | E27: 90 | F27: A
A28: Men AAPF Teen 16-17 220 1/4 | B28: 1 | C28: 1 | D28: 1 | E28: 100 | F28: A
A29: Men AAPF Teen 16-17 242 1/2 | B29: 1 | C29: 1 | D29: 1 | E29: 110 | F29: A
A30: Men AAPF Teen 16-17 275 1/4 | B30: 1 | C30: 1 | D30: 1 | E30: 125 | F30: A
A31: Men AAPF Teen 16-17 308 | B31: 1 | C31: 1 | D31: 1 | E31: 140 | F31: A
A32: Men AAPF Teen 16-17 SHW | B32: 1 | C32: 1 | D32: 1 | E32: 227.5 | F32: A
A33: Men AAPF Teen 18-19 | B33: 1 | C33: 1 | D33: 1 | E33: 227.5 | F33: A
A34: Men AAPF Teen 18-19 114 1/2 | B34: 1 | C34: 1 | D34: 1 | E34: 52 | F34: A
A35: Men AAPF Teen 18-19 123 1/2 | B35: 1 | C35: 1 | D35: 1 | E35: 56 | F35: A
A36: Men AAPF Teen 18-19 132 1/4 | B36: 1 | C36: 1 | D36: 1 | E36: 60 | F36: A
A37: Men AAPF Teen 18-19 148 3/4 | B37: 1 | C37: 1 | D37: 1 | E37: 67.5 | F37: A
A38: Men AAPF Teen 18-19 165 1/4 | B38: 1 | C38: 1 | D38: 1 | E38: 75 | F38: A
A39: Men AAPF Teen 18-19 181 3/4 | B39: 1 | C39: 1 | D39: 1 | E39: 82.5 | F39: A
A40: Men AAPF Teen 18-19 198 1/4 | B40: 1 | C40: 1 | D40: 1 | E40: 90 | F40: A
A41: Men AAPF Teen 18-19 220 1/4 | B41: 1 | C41: 1 | D41: 1 | E41: 100 | F41: A
A42: Men AAPF Teen 18-19 242 1/2 | B42: 1 | C42: 1 | D42: 1 | E42: 110 | F42: A
A43: Men AAPF Teen 18-19 275 1/4 | B43: 1 | C43: 1 | D43: 1 | E43: 125 | F43: A
A44: Men AAPF Teen 18-19 308 | B44: 1 | C44: 1 | D44: 1 | E44: 140 | F44: A
A45: Men AAPF Teen 18-19 SHW | B45: 1 | C45: 1 | D45: 1 | E45: 227.5 | F45: A
A46: Men AAPF JR | B46: 1 | C46: 1 | D46: 1 | E46: 227.5 | F46: A
A47: Men AAPF JR 114 1/2 | B47: 1 | C47: 1 | D47: 1 | E47: 52 | F47: A
A48: Men AAPF JR 123 1/2 | B48: 1 | C48: 1 | D48: 1 | E48: 56 | F48: A
A49: Men AAPF JR 132 1/4 | B49: 1 | C49: 1 | D49: 1 | E49: 60 | F49: A
A50: Men AAPF JR 148 3/4 | B50: 1 | C50: 1 | D50: 1 | E50: 67.5 | F50: A
A51: Men AAPF JR 165 1/4 | B51: 1 | C51: 1 | D51: 1 | E51: 75 | F51: A
A52: Men AAPF JR 181 3/4 | B52: 1 | C52: 1 | D52: 1 | E52: 82.5 | F52: A
A53: Men AAPF JR 198 1/4 | B53: 1 | C53: 1 | D53: 1 | E53: 90 | F53: A
A54: Men AAPF JR 220 1/4 | B54: 1 | C54: 1 | D54: 1 | E54: 100 | F54: A
A55: Men AAPF JR 242 1/2 | B55: 1 | C55: 1 | D55: 1 | E55: 110 | F55: A
A56: Men AAPF JR 275 1/4 | B56: 1 | C56: 1 | D56: 1 | E56: 125 | F56: A
A57: Men AAPF JR 308 | B57: 1 | C57: 1 | D57: 1 | E57: 140 | F57: A
A58: Men AAPF JR SHW | B58: 1 | C58: 1 | D58: 1 | E58: 227.5 | F58: A
A59: Men AAPF | B59: 0 | C59: 1 | D59: 1 | E59: 227.5 | F59: A
A60: Men AAPF 114 1/2 | B60: 0 | C60: 1 | D60: 1 | E60: 52 | F60: A
A61: Men AAPF 123 1/2 | B61: 0 | C61: 1 | D61: 1 | E61: 56 | F61: A
A62: Men AAPF 132 1/4 | B62: 0 | C62: 1 | D62: 1 | E62: 60 | F62: A
A63: Men AAPF 148 3/4 | B63: 0 | C63: 1 | D63: 1 | E63: 67.5 | F63: A
A64: Men AAPF 165 1/4 | B64: 0 | C64: 1 | D64: 1 | E64: 75 | F64: A
A65: Men AAPF 181 3/4 | B65: 0 | C65: 1 | D65: 1 | E65: 82.5 | F65: A
A66: Men AAPF 198 1/4 | B66: 0 | C66: 1 | D66: 1 | E66: 90 | F66: A
A67: Men AAPF 220 1/4 | B67: 0 | C67: 1 | D67: 1 | E67: 100 | F67: A
A68: Men AAPF 242 1/2 | B68: 0 | C68: 1 | D68: 1 | E68: 110 | F68: A
A69: Men AAPF 275 1/4 | B69: 0 | C69: 1 | D69: 1 | E69: 125 | F69: A
A70: Men AAPF 308 | B70: 0 | C70: 1 | D70: 1 | E70: 140 | F70: A
A71: Men AAPF SHW | B71: 0 | C71: 1 | D71: 1 | E71: 227.5 | F71: A
A72: Men AAPF SubMaster | B72: 0 | C72: 0 | D72: 1 | E72: 227.5 | F72: A
A73: Men AAPF SubMaster 114 1/2 | B73: 0 | C73: 0 | D73: 1 | E73: 52 | F73: A
A74: Men AAPF SubMaster 123 1/2 | B74: 0 | C74: 0 | D74: 1 | E74: 56 | F74: A
A75: Men AAPF SubMaster 132 1/4 | B75: 0 | C75: 0 | D75: 1 | E75: 60 | F75: A
A76: Men AAPF SubMaster 148 3/4 | B76: 0 | C76: 0 | D76: 1 | E76: 67.5 | F76: A
A77: Men AAPF SubMaster 165 1/4 | B77: 0 | C77: 0 | D77: 1 | E77: 75 | F77: A
A78: Men AAPF SubMaster 181 3/4 | B78: 0 | C78: 0 | D78: 1 | E78: 82.5 | F78: A
A79: Men AAPF SubMaster 198 1/4 | B79: 0 | C79: 0 | D79: 1 | E79: 90 | F79: A
A80: Men AAPF SubMaster 220 1/4 | B80: 0 | C80: 0 | D80: 1 | E80: 100 | F80: A
A81: Men AAPF SubMaster 242 1/2 | B81: 0 | C81: 0 | D81: 1 | E81: 110 | F81: A
A82: Men AAPF SubMaster 275 1/4 | B82: 0 | C82: 0 | D82: 1 | E82: 125 | F82: A
A83: Men AAPF SubMaster 308 | B83: 0 | C83: 0 | D83: 1 | E83: 140 | F83: A
A84: Men AAPF SubMaster SHW | B84: 0 | C84: 0 | D84: 1 | E84: 227.5 | F84: A
A85: Men AAPF Master | B85: 1 | C85: 1 | D85: 1 | E85: 227.5 | F85: A
A86: Men AAPF Master (40-49) | B86: 1 | C86: 1 | D86: 1 | E86: 227.5 | F86: A
A87: Men AAPF Master (50+) | B87: 1 | C87: 1 | D87: 1 | E87: 227.5 | F87: A
A88: Men AAPF Master 40-44 | B88: 1 | C88: 1 | D88: 1 | E88: 227.5 | F88: A
A89: Men AAPF Master 40-44 114 1/2 | B89: 1 | C89: 1 | D89: 1 | E89: 52 | F89: A
A90: Men AAPF Master 40-44 123 1/2 | B90: 1 | C90: 1 | D90: 1 | E90: 56 | F90: A
A91: Men AAPF Master 40-44 132 1/4 | B91: 1 | C91: 1 | D91: 1 | E91: 60 | F91: A
A92: Men AAPF Master 40-44 148 3/4 | B92: 1 | C92: 1 | D92: 1 | E92: 67.5 | F92: A
A93: Men AAPF Master 40-44 165 1/4 | B93: 1 | C93: 1 | D93: 1 | E93: 75 | F93: A
A94: Men AAPF Master 40-44 181 3/4 | B94: 1 | C94: 1 | D94: 1 | E94: 82.5 | F94: A
A95: Men AAPF Master 40-44 198 1/4 | B95: 1 | C95: 1 | D95: 1 | E95: 90 | F95: A
A96: Men AAPF Master 40-44 220 1/4 | B96: 1 | C96: 1 | D96: 1 | E96: 100 | F96: A
A97: Men AAPF Master 40-44 242 1/2 | B97: 1 | C97: 1 | D97: 1 | E97: 110 | F97: A
A98: Men AAPF Master 40-44 275 1/4 | B98: 1 | C98: 1 | D98: 1 | E98: 125 | F98: A
A99: Men AAPF Master 40-44 308 | B99: 1 | C99: 1 | D99: 1 | E99: 140 | F99: A
A100: Men AAPF Master 40-44 SHW | B100: 1 | C100: 1 | D100: 1 | E100: 227.5 | F100: A
A101: Men AAPF Master 45-49 | B101: 1 | C101: 1 | D101: 1 | E101: 227.5 | F101: A
A102: Men AAPF Master 45-49 114 1/2 | B102: 1 | C102: 1 | D102: 1 | E102: 52 | F102: A
A103: Men AAPF Master 45-49 123 1/2 | B103: 1 | C103: 1 | D103: 1 | E103: 56 | F103: A
A104: Men AAPF Master 45-49 132 1/4 | B104: 1 | C104: 1 | D104: 1 | E104: 60 | F104: A
A105: Men AAPF Master 45-49 148 3/4 | B105: 1 | C105: 1 | D105: 1 | E105: 67.5 | F105: A
A106: Men AAPF Master 45-49 165 1/4 | B106: 1 | C106: 1 | D106: 1 | E106: 75 | F106: A
A107: Men AAPF Master 45-49 181 3/4 | B107: 1 | C107: 1 | D107: 1 | E107: 82.5 | F107: A
A108: Men AAPF Master 45-49 198 1/4 | B108: 1 | C108: 1 | D108: 1 | E108: 90 | F108: A
A109: Men AAPF Master 45-49 220 1/4 | B109: 1 | C109: 1 | D109: 1 | E109: 100 | F109: A
A110: Men AAPF Master 45-49 242 1/2 | B110: 1 | C110: 1 | D110: 1 | E110: 110 | F110: A
A111: Men AAPF Master 45-49 275 1/4 | B111: 1 | C111: 1 | D111: 1 | E111: 125 | F111: A
A112: Men AAPF Master 45-49 308 | B112: 1 | C112: 1 | D112: 1 | E112: 140 | F112: A
A113: Men AAPF Master 45-49 SHW | B113: 1 | C113: 1 | D113: 1 | E113: 227.5 | F113: A
A114: Men AAPF Master 50-54 | B114: 1 | C114: 1 | D114: 1 | E114: 227.5 | F114: A
A115: Men AAPF Master 50-54 114 1/2 | B115: 1 | C115: 1 | D115: 1 | E115: 52 | F115: A
A116: Men AAPF Master 50-54 123 1/2 | B116: 1 | C116: 1 | D116: 1 | E116: 56 | F116: A
A117: Men AAPF Master 50-54 132 1/4 | B117: 1 | C117: 1 | D117: 1 | E117: 60 | F117: A
A118: Men AAPF Master 50-54 148 3/4 | B118: 1 | C118: 1 | D118: 1 | E118: 67.5 | F118: A
A119: Men AAPF Master 50-54 165 1/4 | B119: 1 | C119: 1 | D119: 1 | E119: 75 | F119: A
A120: Men AAPF Master 50-54 181 3/4 | B120: 1 | C120: 1 | D120: 1 | E120: 82.5 | F120: A
A121: Men AAPF Master 50-54 198 1/4 | B121: 1 | C121: 1 | D121: 1 | E121: 90 | F121: A
A122: Men AAPF Master 50-54 220 1/4 | B122: 1 | C122: 1 | D122: 1 | E122: 100 | F122: A
A123: Men AAPF Master 50-54 242 1/2 | B123: 1 | C123: 1 | D123: 1 | E123: 110 | F123: A
A124: Men AAPF Master 50-54 275 1/4 | B124: 1 | C124: 1 | D124: 1 | E124: 125 | F124: A
A125: Men AAPF Master 50-54 308 | B125: 1 | C125: 1 | D125: 1 | E125: 140 | F125: A
A126: Men AAPF Master 50-54 SHW | B126: 1 | C126: 1 | D126: 1 | E126: 227.5 | F126: A
A127: Men AAPF Master 55-59 | B127: 1 | C127: 1 | D127: 1 | E127: 227.5 | F127: A
A128: Men AAPF Master 55-59 114 1/2 | B128: 1 | C128: 1 | D128: 1 | E128: 52 | F128: A
A129: Men AAPF Master 55-59 123 1/2 | B129: 1 | C129: 1 | D129: 1 | E129: 56 | F129: A
A130: Men AAPF Master 55-59 132 1/4 | B130: 1 | C130: 1 | D130: 1 | E130: 60 | F130: A
A131: Men AAPF Master 55-59 148 3/4 | B131: 1 | C131: 1 | D131: 1 | E131: 67.5 | F131: A
A132: Men AAPF Master 55-59 165 1/4 | B132: 1 | C132: 1 | D132: 1 | E132: 75 | F132: A
A133: Men AAPF Master 55-59 181 3/4 | B133: 1 | C133: 1 | D133: 1 | E133: 82.5 | F133: A
A134: Men AAPF Master 55-59 198 1/4 | B134: 1 | C134: 1 | D134: 1 | E134: 90 | F134: A
A135: Men AAPF Master 55-59 220 1/4 | B135: 1 | C135: 1 | D135: 1 | E135: 100 | F135: A
A136: Men AAPF Master 55-59 242 1/2 | B136: 1 | C136: 1 | D136: 1 | E136: 110 | F136: A
A137: Men AAPF Master 55-59 275 1/4 | B137: 1 | C137: 1 | D137: 1 | E137: 125 | F137: A
A138: Men AAPF Master 55-59 308 | B138: 1 | C138: 1 | D138: 1 | E138: 140 | F138: A
A139: Men AAPF Master 55-59 SHW | B139: 1 | C139: 1 | D139: 1 | E139: 227.5 | F139: A
A140: Men AAPF Master 60-64 | B140: 1 | C140: 1 | D140: 1 | E140: 227.5 | F140: A
A141: Men AAPF Master 60-64 114 1/2 | B141: 1 | C141: 1 | D141: 1 | E141: 52 | F141: A
A142: Men AAPF Master 60-64 123 1/2 | B142: 1 | C142: 1 | D142: 1 | E142: 56 | F142: A
A143: Men AAPF Master 60-64 132 1/4 | B143: 1 | C143: 1 | D143: 1 | E143: 60 | F143: A
A144: Men AAPF Master 60-64 148 3/4 | B144: 1 | C144: 1 | D144: 1 | E144: 67.5 | F144: A
A145: Men AAPF Master 60-64 165 1/4 | B145: 1 | C145: 1 | D145: 1 | E145: 75 | F145: A
A146: Men AAPF Master 60-64 181 3/4 | B146: 1 | C146: 1 | D146: 1 | E146: 82.5 | F146: A
A147: Men AAPF Master 60-64 198 1/4 | B147: 1 | C147: 1 | D147: 1 | E147: 90 | F147: A
A148: Men AAPF Master 60-64 220 1/4 | B148: 1 | C148: 1 | D148: 1 | E148: 100 | F148: A
A149: Men AAPF Master 60-64 242 1/2 | B149: 1 | C149: 1 | D149: 1 | E149: 110 | F149: A
A150: Men AAPF Master 60-64 275 1/4 | B150: 1 | C150: 1 | D150: 1 | E150: 125 | F150: A
A151: Men AAPF Master 60-64 308 | B151: 1 | C151: 1 | D151: 1 | E151: 140 | F151: A
A152: Men AAPF Master 60-64 SHW | B152: 1 | C152: 1 | D152: 1 | E152: 227.5 | F152: A
A153: Men AAPF Master 65-69 | B153: 1 | C153: 1 | D153: 1 | E153: 227.5 | F153: A
A154: Men AAPF Master 65-69 114 1/2 | B154: 1 | C154: 1 | D154: 1 | E154: 52 | F154: A
A155: Men AAPF Master 65-69 123 1/2 | B155: 1 | C155: 1 | D155: 1 | E155: 56 | F155: A
A156: Men AAPF Master 65-69 132 1/4 | B156: 1 | C156: 1 | D156: 1 | E156: 60 | F156: A
A157: Men AAPF Master 65-69 148 3/4 | B157: 1 | C157: 1 | D157: 1 | E157: 67.5 | F157: A
A158: Men AAPF Master 65-69 165 1/4 | B158: 1 | C158: 1 | D158: 1 | E158: 75 | F158: A
A159: Men AAPF Master 65-69 181 3/4 | B159: 1 | C159: 1 | D159: 1 | E159: 82.5 | F159: A
A160: Men AAPF Master 65-69 198 1/4 | B160: 1 | C160: 1 | D160: 1 | E160: 90 | F160: A
A161: Men AAPF Master 65-69 220 1/4 | B161: 1 | C161: 1 | D161: 1 | E161: 100 | F161: A
A162: Men AAPF Master 65-69 242 1/2 | B162: 1 | C162: 1 | D162: 1 | E162: 110 | F162: A
A163: Men AAPF Master 65-69 275 1/4 | B163: 1 | C163: 1 | D163: 1 | E163: 125 | F163: A
A164: Men AAPF Master 65-69 308 | B164: 1 | C164: 1 | D164: 1 | E164: 140 | F164: A
A165: Men AAPF Master 65-69 SHW | B165: 1 | C165: 1 | D165: 1 | E165: 227.5 | F165: A
A166: Men AAPF Master 70-74 | B166: 1 | C166: 1 | D166: 1 | E166: 227.5 | F166: A
A167: Men AAPF Master 70-74 114 1/2 | B167: 1 | C167: 1 | D167: 1 | E167: 52 | F167: A
A168: Men AAPF Master 70-74 123 1/2 | B168: 1 | C168: 1 | D168: 1 | E168: 56 | F168: A
A169: Men AAPF Master 70-74 132 1/4 | B169: 1 | C169: 1 | D169: 1 | E169: 60 | F169: A
A170: Men AAPF Master 70-74 148 3/4 | B170: 1 | C170: 1 | D170: 1 | E170: 67.5 | F170: A
A171: Men AAPF Master 70-74 165 1/4 | B171: 1 | C171: 1 | D171: 1 | E171: 75 | F171: A
A172: Men AAPF Master 70-74 181 3/4 | B172: 1 | C172: 1 | D172: 1 | E172: 82.5 | F172: A
A173: Men AAPF Master 70-74 198 1/4 | B173: 1 | C173: 1 | D173: 1 | E173: 90 | F173: A
A174: Men AAPF Master 70-74 220 1/4 | B174: 1 | C174: 1 | D174: 1 | E174: 100 | F174: A
A175: Men AAPF Master 70-74 242 1/2 | B175: 1 | C175: 1 | D175: 1 | E175: 110 | F175: A
A176: Men AAPF Master 70-74 275 1/4 | B176: 1 | C176: 1 | D176: 1 | E176: 125 | F176: A
A177: Men AAPF Master 70-74 308 | B177: 1 | C177: 1 | D177: 1 | E177: 140 | F177: A
A178: Men AAPF Master 70-74 SHW | B178: 1 | C178: 1 | D178: 1 | E178: 227.5 | F178: A
A179: Men AAPF Master 75-79 | B179: 1 | C179: 1 | D179: 1 | E179: 227.5 | F179: A
A180: Men AAPF Master 75-79 114 1/2 | B180: 1 | C180: 1 | D180: 1 | E180: 52 | F180: A
A181: Men AAPF Master 75-79 123 1/2 | B181: 1 | C181: 1 | D181: 1 | E181: 56 | F181: A
A182: Men AAPF Master 75-79 132 1/4 | B182: 1 | C182: 1 | D182: 1 | E182: 60 | F182: A
A183: Men AAPF Master 75-79 148 3/4 | B183: 1 | C183: 1 | D183: 1 | E183: 67.5 | F183: A
A184: Men AAPF Master 75-79 165 1/4 | B184: 1 | C184: 1 | D184: 1 | E184: 75 | F184: A
A185: Men AAPF Master 75-79 181 3/4 | B185: 1 | C185: 1 | D185: 1 | E185: 82.5 | F185: A
A186: Men AAPF Master 75-79 198 1/4 | B186: 1 | C186: 1 | D186: 1 | E186: 90 | F186: A
A187: Men AAPF Master 75-79 220 1/4 | B187: 1 | C187: 1 | D187: 1 | E187: 100 | F187: A
A188: Men AAPF Master 75-79 242 1/2 | B188: 1 | C188: 1 | D188: 1 | E188: 110 | F188: A
A189: Men AAPF Master 75-79 275 1/4 | B189: 1 | C189: 1 | D189: 1 | E189: 125 | F189: A
A190: Men AAPF Master 75-79 308 | B190: 1 | C190: 1 | D190: 1 | E190: 140 | F190: A
A191: Men AAPF Master 75-79 SHW | B191: 1 | C191: 1 | D191: 1 | E191: 227.5 | F191: A
A192: Men AAPF Master 80-84 | B192: 1 | C192: 1 | D192: 1 | E192: 227.5 | F192: A
A193: Men AAPF Master 80-84 114 1/2 | B193: 1 | C193: 1 | D193: 1 | E193: 52 | F193: A
A194: Men AAPF Master 80-84 123 1/2 | B194: 1 | C194: 1 | D194: 1 | E194: 56 | F194: A
A195: Men AAPF Master 80-84 132 1/4 | B195: 1 | C195: 1 | D195: 1 | E195: 60 | F195: A
A196: Men AAPF Master 80-84 148 3/4 | B196: 1 | C196: 1 | D196: 1 | E196: 67.5 | F196: A
A197: Men AAPF Master 80-84 165 1/4 | B197: 1 | C197: 1 | D197: 1 | E197: 75 | F197: A
A198: Men AAPF Master 80-84 181 3/4 | B198: 1 | C198: 1 | D198: 1 | E198: 82.5 | F198: A
A199: Men AAPF Master 80-84 198 1/4 | B199: 1 | C199: 1 | D199: 1 | E199: 90 | F199: A
A200: Men AAPF Master 80-84 220 1/4 | B200: 1 | C200: 1 | D200: 1 | E200: 100 | F200: A
A201: Men AAPF Master 80-84 242 1/2 | B201: 1 | C201: 1 | D201: 1 | E201: 110 | F201: A
A202: Men AAPF Master 80-84 275 1/4 | B202: 1 | C202: 1 | D202: 1 | E202: 125 | F202: A
... 477 more rows

Sheet Module1 (hidden)
